bitfinex-derivatives/quotes_BTCF0:USTF0_20250828
["timestamp","ask_amount","ask_price","bid_price","bid_amount"]
[1756374733141,1.82065441,112960.0,112950.0,0.1452297]
[1756374733946,1.82065441,112960.0,112950.0,0.1112497]
[1756374734344,1.01381441,112960.0,112950.0,0.1112497]
[1756374734547,1.82057441,112960.0,112950.0,0.1112497]
[1756374734746,1.82057441,112960.0,112950.0,0.02272]
[1756374738753,1.40176771,112960.0,112950.0,0.02272]
[1756374738946,1.82057441,112960.0,112950.0,0.02272]
[1756374739249,1.82057441,112960.0,112950.0,0.05434]
[1756374740447,1.82057441,112960.0,112950.0,0.1428697]
[1756374740648,1.80057441,112960.0,112950.0,0.1428697]
[1756374741554,1.80057441,112960.0,112950.0,0.5616764]
[1756374741851,1.82057441,112960.0,112950.0,0.5616764]
[1756374742151,1.40176771,112960.0,112950.0,0.5616764]
[1756374742356,1.82057441,112960.0,112950.0,0.5616764]
[1756374744454,1.82057441,112960.0,112950.0,0.1428697]
[1756374749559,1.82057441,112960.0,112950.0,0.1112497]
[1756374751963,1.45977441,112960.0,112950.0,0.1112497]
[1756374752158,2.18137441,112960.0,112950.0,0.1112497]
[1756374756458,2.22903837,112960.0,112950.0,0.0895297]
[1756374756862,2.18137441,112960.0,112950.0,0.001]
[1756374758864,2.48137441,112960.0,112950.0,0.001]
[1756374759163,2.18137441,112960.0,112950.0,0.001]
[1756374759864,2.16137441,112960.0,112950.0,0.0895297]
[1756374760265,2.16137441,112960.0,112950.0,0.1106997]
[1756374760965,1.74256771,112960.0,112950.0,0.1106997]
[1756374761167,2.16137441,112960.0,112950.0,0.1106997]
[1756374762767,2.16137441,112960.0,112950.0,0.1450597]
[1756374763569,2.16137441,112960.0,112950.0,0.6229564]
[1756374763964,2.16137441,112960.0,112950.0,0.07229]
[1756374764164,2.16137441,112960.0,112950.0,0.4910967]
[1756374766971,2.16137441,112960.0,112950.0,0.5796264]
[1756374770379,2.16137441,112960.0,112950.0,0.1608197]
[1756374770677,2.16137441,112960.0,112950.0,0.5796264]
[1756374770872,1.74256771,112960.0,112950.0,0.5796264]
[1756374771078,2.16137441,112960.0,112950.0,0.6029764]
[1756374771279,2.16137441,112960.0,112950.0,0.1841697]
[1756374771476,2.16137441,112960.0,112950.0,0.6029764]
[1756374775085,1.74256771,112960.0,112950.0,0.6229564]
[1756374775278,2.16137441,112960.0,112950.0,0.6229564]
[1756374775679,2.16137441,112960.0,112950.0,0.2041497]
[1756374775881,2.16137441,112960.0,112950.0,0.6229564]
[1756374776580,1.74256771,112960.0,112950.0,0.6229564]
[1756374776880,2.16137441,112960.0,112950.0,0.6229564]
[1756374780285,2.16137441,112960.0,112950.0,0.6029764]
[1756374780780,2.16137441,112960.0,112950.0,0.5796264]
[1756374781986,2.16137441,112960.0,112950.0,0.1608197]
[1756374782374,2.16137441,112960.0,112950.0,0.5796264]
[1756374785577,0.05633282,112960.0,112950.0,3.0656531]
[1756374785881,0.004,112960.0,112950.0,3.0656531]
[1756374786683,0.004,112960.0,112950.0,2.2280397]
[1756374786980,0.03359,112960.0,112950.0,3.0656531]
[1756374788785,0.03359,112960.0,112950.0,2.7976531]
[1756374793485,0.004,112960.0,112950.0,2.7976531]
[1756374794291,0.004,112960.0,112950.0,3.0656531]
[1756374794784,0.02959,112970.0,112950.0,3.0656531]
[1756374794989,1.20959,112980.0,112970.0,0.13469]
[1756374795289,0.02959,112980.0,112970.0,2.1288507]
[1756374796488,0.03559,112980.0,112970.0,2.1298507]
[1756374796991,0.06128,112980.0,112970.0,2.1298507]
[1756374797491,0.06128,112980.0,112970.0,2.13861846]
[1756374797788,0.06128,112980.0,112970.0,2.1298507]
[1756374798287,0.05528,112980.0,112970.0,2.19905152]
[1756374798692,0.05528,112980.0,112970.0,2.1298507]
[1756374798988,0.05228,112980.0,112970.0,2.1308507]
[1756374799489,0.05728,112980.0,112970.0,1.8108507]
[1756374799690,0.05728,112980.0,112970.0,2.1808507]
[1756374800188,0.05728,112980.0,112970.0,2.4488507]
[1756374801489,0.05728,112980.0,112970.0,2.1788507]
[1756374803694,0.05728,112980.0,112970.0,2.24873128]
[1756374808091,0.10157,112980.0,112970.0,0.574854]
[1756374808295,0.10157,112980.0,112970.0,1.7994207]
[1756374808496,0.7703767,112980.0,112970.0,1.7994207]
[1756374808893,1.1311767,112980.0,112970.0,1.380614]
[1756374809094,1.1311767,112980.0,112970.0,0.9936607]
[1756374809494,1.1311767,112980.0,112970.0,0.8936607]
[1756374811693,1.9368967,112980.0,112970.0,0.8936607]
[1756374812700,2.32081166,112980.0,112970.0,0.431274]
[1756374814698,2.32081166,112980.0,112970.0,0.380874]
[1756374814899,1.96081166,112980.0,112970.0,0.380874]
[1756374815400,2.29081166,112980.0,112970.0,0.415264]
[1756374815696,1.96081166,112980.0,112970.0,0.415264]
[1756374815898,2.28081166,112980.0,112970.0,0.415264]
[1756374816098,1.96081166,112980.0,112970.0,0.415264]
[1756374817300,2.33081166,112980.0,112970.0,0.415264]
[1756374817599,1.96081166,112980.0,112970.0,0.415264]
[1756374818002,1.96081166,112980.0,112970.0,0.147264]
[1756374819002,1.96081166,112980.0,112970.0,0.111874]
[1756374819400,1.96281166,112980.0,112970.0,0.111874]
[1756374820003,1.96381166,112980.0,112970.0,0.111874]
[1756374821302,1.96381166,112980.0,112970.0,0.089514]
[1756374822801,1.96381166,112980.0,112970.0,0.111764]
[1756374824004,1.98381166,112980.0,112970.0,0.111764]
[1756374826509,1.98381166,112980.0,112970.0,0.089514]
[1756374828713,1.56500496,112980.0,112970.0,0.111764]
[1756374829010,1.98381166,112980.0,112970.0,0.111764]
[1756374829309,2.46261836,112980.0,112970.0,0.001]
[1756374829510,2.71261836,112980.0,112970.0,0.001]
[1756374829710,2.76028232,112980.0,112970.0,0.001]
[1756374832707,2.90728232,112980.0,112970.0,0.001]
[1756374833011,2.76028232,112980.0,112970.0,0.001]
[1756374833212,2.51028232,112980.0,112970.0,0.001]
[1756374834907,2.51028232,112980.0,112970.0,0.0895141]
[1756374836015,2.51028232,112980.0,112970.0,0.1117641]
[1756374836313,2.46261836,112980.0,112970.0,0.1117641]
[1756374836516,2.51028232,112980.0,112970.0,0.1117641]
[1756374838414,2.51028232,112980.0,112970.0,0.02325]
[1756374840016,1.67266892,112980.0,112970.0,0.02325]
[1756374840220,2.51028232,112980.0,112970.0,0.02325]
[1756374840611,2.51028232,112980.0,112970.0,0.001]
[1756374841014,2.09147562,112980.0,112970.0,0.001]
[1756374843011,2.51028232,112980.0,112970.0,0.001]
[1756374843312,0.05762,112970.0,112960.0,0.28757969]
[1756374843519,1.28380166,112970.0,112960.0,0.51757969]
[1756374843718,0.90380166,112970.0,112960.0,0.67907149]
[1756374844017,0.90380166,112970.0,112960.0,1.12113819]
[1756374844516,0.90480166,112970.0,112960.0,0.70233149]
[1756374844717,1.24480166,112970.0,112960.0,0.70233149]
[1756374844907,1.24480166,112970.0,112960.0,0.59054969]
[1756374845220,1.24518166,112970.0,112960.0,0.59054969]
[1756374846420,1.24518166,112970.0,112960.0,0.67907149]
[1756374846624,1.23518166,112970.0,112960.0,0.67907149]
[1756374846821,0.90518166,112970.0,112960.0,0.67907149]
[1756374847022,0.92518166,112970.0,112960.0,0.67907149]
[1756374847322,0.92518166,112970.0,112960.0,0.70325149]
[1756374847526,1.25518166,112970.0,112960.0,0.70325149]
[1756374847722,1.25518166,112970.0,112960.0,0.43525149]
[1756374848227,1.25518166,112970.0,112960.0,0.32254969]
[1756374848728,1.22713166,112970.0,112960.0,0.32254969]
[1756374848927,1.25518166,112970.0,112960.0,0.32254969]
[1756374849518,1.25518166,112970.0,112960.0,0.30621969]
[1756374849929,1.25518166,112970.0,112960.0,0.27182969]
[1756374852729,1.25518166,112970.0,112960.0,0.30525969]
[1756374856038,1.25518166,112970.0,112960.0,0.27182969]
[1756374856330,1.25518166,112970.0,112960.0,0.30525969]
[1756374856533,1.25524807,112970.0,112960.0,0.30525969]
[1756374856733,1.25524807,112970.0,112960.0,0.27182969]
[1756374857834,1.25524807,112970.0,112960.0,0.30525969]
[1756374858335,1.25524807,112970.0,112960.0,0.24957969]
[1756374859536,1.25223807,112970.0,112960.0,0.24957969]
[1756374859728,1.25223807,112970.0,112960.0,0.27225969]
[1756374861534,1.25223807,112970.0,112960.0,0.30568969]
[1756374861830,1.25223807,112970.0,112960.0,0.24957969]
[1756374864038,1.39923807,112970.0,112960.0,0.23]
[1756374865932,1.3752567,112970.0,112960.0,0.23]
[1756374866136,1.39923646,112970.0,112960.0,0.23]
[1756374873834,1.44690042,112970.0,112960.0,0.23]
[1756374876547,1.39923646,112970.0,112960.0,0.23]
[1756374880646,1.39923637,112970.0,112960.0,0.23]
[1756374881550,1.39923637,112970.0,112960.0,0.28699]
[1756374885449,1.3752567,112970.0,112960.0,0.28699]
[1756374885659,1.39914463,112970.0,112960.0,0.28699]
[1756374886653,1.4468056,112970.0,112960.0,0.28699]
[1756374888756,1.8076056,112970.0,112960.0,0.28699]
[1756374889357,1.3887989,112970.0,112960.0,0.30349]
[1756374889558,1.8076056,112970.0,112960.0,0.30349]
[1756374890960,1.8076056,112970.0,112960.0,0.07349]
[1756374891152,1.8076056,112970.0,112960.0,0.10349]
[1756374893458,1.8076056,112970.0,112960.0,0.08699]
[1756374894257,1.3887989,112970.0,112960.0,0.08699]
[1756374894457,1.8076056,112970.0,112960.0,0.10349]
[1756374895160,1.3887989,112970.0,112960.0,0.10349]
[1756374895359,1.8076056,112970.0,112960.0,0.10349]
[1756374895562,1.75994463,112970.0,112960.0,0.10349]
[1756374896063,1.40994463,112970.0,112960.0,0.10349]
[1756374896255,2.21498463,112970.0,112960.0,0.5464767]
[1756374896563,2.59498463,112970.0,112960.0,0.12767]
[1756374898663,1.78994463,112970.0,112960.0,0.12767]
[1756374898963,2.59498463,112970.0,112960.0,0.12767]
[1756374899460,1.78994463,112970.0,112960.0,0.12767]
[1756374899658,2.59494463,112970.0,112960.0,0.12767]
[1756374900061,2.59494463,112970.0,112960.0,0.10349]
[1756374900456,2.59493847,112970.0,112960.0,0.10349]
[1756374900961,2.17613177,112970.0,112960.0,0.10349]
[1756374901360,2.59493847,112970.0,112960.0,0.10349]
[1756374902061,1.78993847,112970.0,112960.0,0.10349]
[1756374902264,2.59493847,112970.0,112960.0,0.10349]
[1756374902761,2.59489847,112970.0,112960.0,0.10349]
[1756374903363,2.64255944,112970.0,112960.0,0.10349]
[1756374904864,2.22375274,112970.0,112960.0,0.1223]
[1756374905064,2.22375274,112970.0,112960.0,0.14648]
[1756374905364,2.64255944,112970.0,112960.0,0.14648]
[1756374905564,2.64255944,112970.0,112960.0,0.10349]
[1756374906667,2.59489847,112970.0,112960.0,0.10349]
[1756374908169,2.44789847,112970.0,112960.0,0.10349]
[1756374908369,2.44789847,112970.0,112960.0,0.1920119]
[1756374908670,2.06789847,112970.0,112960.0,0.1920119]
[1756374908866,2.42789847,112970.0,112960.0,0.1920119]
[1756374909171,1.64909177,112970.0,112960.0,0.1920119]
[1756374909368,2.44789847,112970.0,112960.0,0.1920119]
[1756374912073,1.64909177,112970.0,112960.0,0.1755119]
[1756374912267,2.44789847,112970.0,112960.0,0.1755119]
[1756374913474,2.06789847,112970.0,112960.0,0.1755119]
[1756374913773,2.39789847,112970.0,112960.0,0.1755119]
[1756374917777,2.06789847,112970.0,112960.0,0.1755119]
[1756374917979,2.39789847,112970.0,112960.0,0.1755119]
[1756374918280,2.54489847,112970.0,112960.0,0.1755119]
[1756374919076,1.73993847,112970.0,112960.0,0.1755119]
[1756374919279,2.54473847,112970.0,112960.0,0.1755119]
[1756374921883,2.54473847,112970.0,112960.0,0.1411919]
[1756374923685,2.54473847,112970.0,112960.0,0.1185219]
[1756374924172,2.52473847,112970.0,112960.0,0.1185219]
[1756374924984,2.52473847,112970.0,112960.0,0.03]
[1756374926386,2.57239944,112970.0,112960.0,0.03]
[1756374928689,2.15359274,112970.0,112960.0,0.03]
[1756374928894,2.57239944,112970.0,112960.0,0.03]
[1756374931191,2.57239944,112970.0,112960.0,0.01]
[1756374931392,0.09891,112960.0,112950.0,0.5073314]
[1756374931595,0.92239847,112960.0,112950.0,0.7373314]
[1756374931990,0.92239847,112960.0,112950.0,0.7600214]
[1756374932291,0.92239847,112960.0,112950.0,0.7949314]
[1756374932692,0.92339847,112960.0,112950.0,0.8128914]
[1756374932897,0.92339847,112960.0,112950.0,0.8309314]
[1756374933393,0.92339847,112960.0,112950.0,0.8329314]
[1756374934792,0.92239847,112960.0,112950.0,0.8309314]
[1756374934993,0.92439847,112960.0,112950.0,0.8319314]
[1756374935289,0.92439847,112960.0,112950.0,0.8299314]
[1756374935594,0.92539847,112960.0,112950.0,0.8299314]
[1756374935990,0.92539847,112960.0,112950.0,0.3771247]
[1756374936191,0.92539847,112960.0,112950.0,0.4125947]
[1756374936385,0.92539847,112960.0,112950.0,0.8314014]
[1756374936695,0.92539847,112960.0,112950.0,0.7074067]
[1756374937092,0.92539847,112960.0,112950.0,0.7229067]
[1756374937391,0.92539847,112960.0,112950.0,0.27366]
[1756374937596,0.92539847,112960.0,112950.0,0.02362]
[1756374937790,0.92539847,112960.0,112950.0,0.0716]
[1756374939098,0.92539847,112960.0,112950.0,0.0561]
[1756374939694,1.27539847,112960.0,112950.0,0.02362]
[1756374940196,1.27539847,112960.0,112950.0,0.001]
[1756374940597,1.32305944,112960.0,112950.0,0.001]
[1756374943302,1.32538944,112960.0,112950.0,0.001]
[1756374944202,1.57538944,112960.0,112950.0,0.001]
[1756374944398,1.99419614,112960.0,112950.0,0.001]
[1756374944597,1.57538944,112960.0,112950.0,0.001]
[1756374944797,1.99419614,112960.0,112950.0,0.001]
[1756374945810,1.57538944,112960.0,112950.0,0.001]
[1756374948501,1.72238944,112960.0,112950.0,0.001]
[1756374953107,1.47238944,112960.0,112950.0,0.001]
[1756374954510,1.89119614,112960.0,112950.0,0.001]
[1756374954709,1.84353517,112960.0,112950.0,0.001]
[1756374957615,1.42472847,112960.0,112950.0,0.001]
[1756374966014,1.84353517,112960.0,112950.0,0.001]
[1756374966716,1.89119614,112960.0,112950.0,0.001]
[1756374968416,1.89098696,112960.0,112950.0,0.001]
[1756374969318,1.47218026,112960.0,112950.0,0.001]
[1756374970518,1.44850767,112960.0,112950.0,0.001]
[1756374970816,1.4880552,112960.0,112950.0,0.001]
[1756374971013,1.9068619,112960.0,112950.0,0.001]
[1756374973621,1.4880552,112960.0,112950.0,0.001]
[1756374976820,1.47211887,112960.0,112950.0,0.001]
[1756374981520,1.47211887,112960.0,112950.0,0.03935]
[1756374981723,2.27639887,112960.0,112950.0,0.14502]
[1756374986428,2.22878325,112960.0,112950.0,0.0239]
[1756374986832,2.22890628,112960.0,112950.0,0.0239]
[1756374987732,2.22890628,112960.0,112950.0,0.001]
[1756374993545,2.22890628,112960.0,112950.0,0.0239]
[1756374994545,1.42462628,112960.0,112950.0,0.0239]
[1756374994746,2.22878628,112960.0,112950.0,0.0239]
[1756374997644,2.2764019,112960.0,112950.0,0.0239]
[1756374999148,2.22878628,112960.0,112950.0,0.001]
[1756375012257,2.22878628,112960.0,112950.0,0.02222]
[1756375012557,1.42462628,112960.0,112950.0,0.13966]
[1756375012757,1.42462628,112960.0,112950.0,0.8969965]
[1756375012758,1.27262628,112960.0,112950.0,0.8969965]
[1756375012964,1.71158628,112960.0,112950.0,0.8969965]
[1756375013159,1.71158628,112960.0,112950.0,0.6469965]
[1756375014764,1.71158628,112960.0,112950.0,0.5584667]
[1756375014958,1.73158628,112960.0,112950.0,0.13966]
[1756375016664,1.7792019,112960.0,112950.0,0.13966]
[1756375017453,2.0992019,112960.0,112950.0,0.13966]
[1756375018263,2.0992019,112960.0,112950.0,0.0887]
[1756375019367,2.0992019,112960.0,112950.0,0.06882]
[1756375020761,0.9509819,112960.0,112950.0,0.13966]
[1756375020967,1.7598619,112960.0,112950.0,0.13966]
[1756375021267,2.0898619,112960.0,112950.0,0.13966]
[1756375022166,1.7798619,112960.0,112950.0,0.13966]
[1756375023268,1.9268619,112960.0,112950.0,0.13966]
[1756375023770,1.7798619,112960.0,112950.0,0.13966]
[1756375024370,1.7798619,112960.0,112950.0,0.03731]
[1756375024669,1.7798219,112960.0,112950.0,0.5269567]
[1756375024862,1.7798219,112960.0,112950.0,0.5584667]
[1756375025058,1.7798219,112960.0,112950.0,0.13966]
[1756375026670,1.73220628,112960.0,112950.0,0.13966]
[1756375027264,2.04220628,112960.0,112950.0,0.13966]
[1756375027470,1.73220628,112960.0,112950.0,0.13966]
[1756375027669,1.71216628,112960.0,112950.0,0.6469965]
[1756375029768,1.71216628,112960.0,112950.0,0.5584667]
[1756375029970,1.73216628,112960.0,112950.0,0.5584667]
[1756375031075,1.73216628,112960.0,112950.0,0.6469965]
[1756375031376,1.73216628,112960.0,112950.0,0.2281898]
[1756375031574,1.73216628,112960.0,112950.0,0.6469965]
[1756375033571,1.29335958,112960.0,112950.0,0.6469965]
[1756375033875,1.71216628,112960.0,112950.0,0.6469965]
[1756375038777,1.35136628,112960.0,112950.0,0.6469965]
[1756375038979,1.71216628,112960.0,112950.0,0.6469965]
[1756375043884,1.71216628,112960.0,112950.0,0.6192465]
[1756375045384,1.71216628,112960.0,112950.0,0.6471665]
[1756375046187,1.74216628,112960.0,112950.0,0.0887]
[1756375046487,1.74216628,112960.0,112950.0,0.5075067]
[1756375047384,1.74216628,112960.0,112950.0,0.5960363]
[1756375047887,1.71216628,112960.0,112950.0,0.5960363]
[1756375048088,1.71216628,112960.0,112950.0,0.5075067]
[1756375048285,1.74216628,112960.0,112950.0,0.5075067]
[1756375049289,1.74216628,112960.0,112950.0,0.5960364]
[1756375050490,2.09216628,112960.0,112950.0,0.001]
[1756375053897,2.34216628,112960.0,112950.0,0.001]
[1756375056694,2.3183867,112960.0,112950.0,0.001]
[1756375057287,2.7371934,112960.0,112950.0,0.001]
[1756375057487,2.3183867,112960.0,112950.0,0.001]
[1756375057995,2.34210443,112960.0,112950.0,0.001]
[1756375058489,2.76091113,112960.0,112950.0,0.001]
[1756375060090,2.34210443,112960.0,112950.0,0.001]
[1756375062287,2.34210443,112960.0,112930.0,0.61044023]
[1756375062288,2.65291113,112960.0,112930.0,0.48987703]
[1756375062493,0.8804267,112940.0,112930.0,0.22156033]
[1756375062693,1.72766443,112940.0,112930.0,0.22156033]
[1756375063595,1.72766443,112940.0,112930.0,0.22356033]
[1756375063795,1.72766443,112940.0,112930.0,0.64236703]
[1756375063995,1.72766443,112940.0,112930.0,0.22356033]
[1756375064293,1.72766443,112940.0,112930.0,0.64236703]
[1756375065093,1.73665172,112940.0,112930.0,0.64236703]
[1756375065292,1.73665172,112940.0,112930.0,0.64436703]
[1756375066197,1.73765172,112940.0,112930.0,0.64236703]
[1756375066495,1.73765172,112940.0,112930.0,0.64336703]
[1756375066697,1.73765172,112940.0,112930.0,0.73191243]
[1756375066897,1.73765172,112940.0,112930.0,0.73091243]
[1756375067797,1.73765172,112940.0,112930.0,0.64236703]
[1756375068298,1.73765172,112940.0,112930.0,0.73091243]
[1756375070102,1.31884502,112940.0,112930.0,0.73091243]
[1756375070400,1.73765172,112940.0,112930.0,0.73091243]
[1756375072802,1.73765172,112940.0,112930.0,0.70299243]
[1756375073704,1.73765172,112940.0,112930.0,0.61444703]
[1756375073905,1.73765172,112940.0,112930.0,0.55444703]
[1756375075806,1.73765172,112940.0,112930.0,0.53119703]
[1756375076006,2.09845172,112940.0,112930.0,0.53119703]
[1756375077208,2.09845172,112940.0,112930.0,0.13564033]
[1756375077505,2.09845172,112940.0,112930.0,0.53119703]
[1756375081109,2.09845172,112940.0,112930.0,0.61974243]
[1756375081507,2.09845172,112940.0,112930.0,0.64299243]
[1756375082110,2.07845172,112940.0,112930.0,0.67183243]
[1756375083610,2.07845172,112940.0,112930.0,0.6519321]
[1756375083907,2.22545172,112940.0,112930.0,0.6519321]
[1756375084213,2.07845172,112940.0,112930.0,0.6519321]
[1756375084711,2.07845172,112940.0,112930.0,0.6230921]
[1756375088009,2.07845172,112940.0,112930.0,0.2042854]
[1756375088513,2.07845172,112940.0,112930.0,0.6230921]
[1756375089013,2.07845172,112940.0,112930.0,0.02421]
[1756375089213,2.07845172,112940.0,112930.0,0.4430167]
[1756375089410,2.07845172,112940.0,112930.0,0.4766867]
[1756375089813,2.07845172,112940.0,112930.0,0.4927467]
[1756375090009,1.65964502,112940.0,112930.0,0.5116367]
[1756375090312,2.07845172,112940.0,112930.0,0.6243121]
[1756375090614,2.07845172,112940.0,112930.0,0.6518421]
[1756375090909,0.85612502,112940.0,112930.0,0.6518421]
[1756375091114,2.07825172,112940.0,112930.0,0.6518421]
[1756375095916,1.65944502,112940.0,112930.0,0.6518421]
[1756375096312,2.07825172,112940.0,112930.0,0.6518421]
[1756375096505,2.07321172,112940.0,112930.0,0.6518421]
[1756375096711,2.07821172,112940.0,112930.0,0.6518421]
[1756375096909,3.25821172,112940.0,112930.0,0.6518421]
[1756375097714,2.83940502,112940.0,112930.0,0.6518421]
[1756375097912,3.25821172,112940.0,112930.0,0.6518421]
[1756375098416,2.83940502,112940.0,112930.0,0.6518421]
[1756375098617,3.25821172,112940.0,112930.0,0.6518421]
[1756375101717,2.89741172,112940.0,112930.0,0.6518421]
[1756375105024,2.89741172,112940.0,112930.0,0.2330354]
[1756375105217,2.89741172,112940.0,112930.0,0.6518421]
[1756375106224,2.89741172,112940.0,112930.0,0.2330354]
[1756375106522,2.89741172,112940.0,112930.0,0.6518421]
[1756375107619,2.53661172,112940.0,112930.0,0.6518421]
[1756375107923,2.89741172,112940.0,112930.0,0.6518421]
[1756375108225,2.89741172,112940.0,112930.0,0.2330354]
[1756375108520,2.89741172,112940.0,112930.0,0.6001821]
[1756375110629,2.47860502,112940.0,112930.0,0.6001821]
[1756375110926,2.89741172,112940.0,112930.0,0.6001821]
[1756375112728,2.53661172,112940.0,112930.0,0.6001821]
[1756375112929,2.89741172,112940.0,112930.0,0.6001821]
[1756375113732,2.94507974,112940.0,112930.0,0.6001821]
[1756375113933,2.89741172,112940.0,112930.0,0.6001821]
[1756375114431,2.94507974,112940.0,112930.0,0.6001821]
[1756375115233,2.89741172,112940.0,112930.0,0.6001821]
[1756375115634,2.94507974,112940.0,112930.0,0.6001821]
[1756375116333,2.94507974,112940.0,112930.0,0.5476221]
[1756375116534,1.76507974,112940.0,112930.0,0.5476221]
[1756375116735,1.71741172,112940.0,112930.0,0.5476221]
[1756375117034,1.71741172,112940.0,112930.0,0.5805521]
[1756375120734,1.29860502,112940.0,112930.0,0.1127554]
[1756375120935,1.71741172,112940.0,112930.0,0.5315621]
[1756375121135,1.71741172,112940.0,112930.0,0.5644921]
[1756375121536,2.09741172,112940.0,112930.0,0.5644921]
[1756375121842,1.73741172,112940.0,112930.0,0.5644921]
[1756375124540,1.73741172,112940.0,112930.0,0.5315621]
[1756375125841,1.73741172,112940.0,112930.0,0.5644921]
[1756375126239,1.31860502,112940.0,112930.0,0.5807021]
[1756375126539,1.73741172,112940.0,112930.0,0.5807021]
[1756375127542,1.73741172,112940.0,112930.0,0.5477721]
[1756375127845,1.73741172,112940.0,112930.0,0.5093522]
[1756375128945,1.73741172,112940.0,112930.0,0.5318722]
[1756375129342,1.73741172,112940.0,112930.0,0.4433267]
[1756375130347,1.73741172,112940.0,112930.0,0.5648021]
[1756375133144,1.73741172,112940.0,112930.0,0.5093521]
[1756375133648,2.09821172,112940.0,112930.0,0.5648021]
[1756375135751,2.09821172,112940.0,112930.0,0.5810121]
[1756375138253,2.09821172,112940.0,112930.0,0.4924667]
[1756375140756,1.37661172,112940.0,112930.0,0.4924667]
[1756375140953,2.09821172,112940.0,112930.0,0.4924667]
[1756375145458,1.67940502,112940.0,112930.0,0.5123267]
[1756375145660,2.09821172,112940.0,112930.0,0.5123267]
[1756375146664,2.14587974,112940.0,112930.0,0.5123267]
[1756375147177,2.14587974,112940.0,112930.0,0.09352]
[1756375147367,2.14587974,112940.0,112930.0,0.5123267]
[1756375150671,2.14587974,112940.0,112930.0,0.09352]
[1756375150970,2.14587974,112940.0,112930.0,0.5123267]
[1756375153073,2.14587974,112940.0,112930.0,0.09352]
[1756375153468,2.14587974,112940.0,112930.0,0.5123267]
[1756375154574,1.72707304,112940.0,112930.0,0.5123267]
[1756375154774,2.14587974,112940.0,112930.0,0.5123267]
[1756375155073,1.72707304,112940.0,112930.0,0.5366367]
[1756375155272,2.14587974,112940.0,112930.0,0.5366367]
[1756375155876,2.14587974,112940.0,112930.0,0.5123267]
[1756375156667,2.09821172,112940.0,112930.0,0.5123267]
[1756375157167,2.09821172,112940.0,112930.0,0.06059]
[1756375157373,2.09821172,112940.0,112930.0,0.05815]
[1756375157673,2.09821172,112940.0,112930.0,0.4433267]
[1756375158469,2.09821172,112940.0,112930.0,0.02452]
[1756375159565,2.09821172,112940.0,112930.0,0.05815]
[1756375162174,2.09821172,112940.0,112930.0,0.02452]
[1756375165274,2.09821172,112940.0,112930.0,0.4433267]
[1756375165467,2.09821172,112940.0,112930.0,0.02452]
[1756375165666,2.09821172,112940.0,112930.0,0.4433267]
[1756375166877,2.09823172,112940.0,112930.0,0.4433267]
[1756375167778,2.09823172,112940.0,112930.0,0.4769567]
[1756375170380,2.09823172,112940.0,112930.0,0.02452]
[1756375170576,2.09823172,112940.0,112930.0,0.4433267]
[1756375170879,2.09823172,112940.0,112930.0,0.4769567]
[1756375171379,2.09823172,112940.0,112930.0,0.05815]
[1756375171579,2.09823172,112940.0,112930.0,0.4769567]
[1756375172480,1.67942502,112940.0,112930.0,0.4769567]
[1756375172784,2.09823172,112940.0,112930.0,0.4769567]
[1756375173681,2.09823172,112940.0,112930.0,0.05815]
[1756375173984,2.09823172,112940.0,112930.0,0.4769567]
[1756375176477,1.67942502,112940.0,112930.0,0.4769567]
[1756375176970,2.09823172,112940.0,112930.0,0.4769567]
[1756375177572,2.09823172,112940.0,112930.0,0.05815]
[1756375177774,2.09823172,112940.0,112930.0,0.4769567]
[1756375180086,1.67942502,112940.0,112930.0,0.5117167]
[1756375180384,2.09823172,112940.0,112930.0,0.5623467]
[1756375181186,1.67942502,112940.0,112930.0,0.5623467]
[1756375181486,2.09823172,112940.0,112930.0,0.5623467]
[1756375182185,1.67942502,112940.0,112930.0,0.14354]
[1756375182482,2.09823172,112940.0,112930.0,0.5623467]
[1756375185890,2.07823172,112940.0,112930.0,0.5623467]
[1756375187497,2.05449399,112940.0,112930.0,0.5623467]
[1756375187700,2.0782317,112940.0,112930.0,0.5623467]
[1756375188191,2.0782317,112940.0,112930.0,0.6508921]
[1756375189197,2.0782317,112940.0,112930.0,0.6237021]
[1756375190703,2.0782317,112940.0,112930.0,0.6508921]
[1756375191595,0.856145,112940.0,112930.0,0.6508921]
[1756375191802,0.91528771,112940.0,112930.0,0.9008921]
[1756375192203,0.89978505,112940.0,112930.0,0.9008921]
[1756375192899,0.89080771,112940.0,112930.0,0.9008921]
[1756375193101,0.89080771,112940.0,112930.0,0.6508921]
[1756375193301,0.91338771,112940.0,112930.0,0.6508921]
[1756375193502,2.09338771,112940.0,112930.0,0.6508921]
[1756375193702,2.09838771,112940.0,112930.0,0.6508921]
[1756375195104,2.10637771,112940.0,112930.0,0.9188921]
[1756375195704,1.30365771,112940.0,112930.0,0.9188921]
[1756375197306,1.31264926,112940.0,112930.0,0.9188921]
[1756375198907,1.31265214,112940.0,112930.0,0.9188921]
[1756375200706,1.67345214,112940.0,112930.0,0.9188921]
[1756375202304,1.67345214,112940.0,112930.0,0.6508921]
[1756375203108,1.66446059,112940.0,112930.0,0.6508921]
[1756375204610,1.30366059,112940.0,112930.0,0.9708921]
[1756375205104,1.30366059,112940.0,112930.0,0.6508921]
[1756375206607,1.30366059,112940.0,112930.0,1.4534921]
[1756375206810,1.27992,112940.0,112930.0,1.4534921]
[1756375209909,1.30365805,112940.0,112930.0,1.4534921]
[1756375210307,1.30365805,112940.0,112930.0,1.46216954]
[1756375210908,1.30365805,112940.0,112930.0,1.4534921]
[1756375211607,1.27992,112940.0,112930.0,1.7034921]
[1756375211806,0.09992,112940.0,112930.0,2.0234921]
[1756375213412,0.09193,112940.0,112930.0,2.0234921]
[1756375215711,0.08693,112940.0,112930.0,2.0234921]
[1756375216315,0.08693,112940.0,112930.0,1.7734921]
[1756375217816,0.08693,112940.0,112930.0,2.1342921]
[1756375218115,0.11065975,112940.0,112930.0,1.82330461]
[1756375218916,0.11065975,112940.0,112930.0,1.8142921]
[1756375222521,0.11565975,112940.0,112930.0,1.83368991]
[1756375223323,0.09193,112940.0,112930.0,1.83368991]
[1756375224320,0.08693,112940.0,112930.0,1.83368991]
[1756375225728,0.08693,112940.0,112930.0,1.41488321]
[1756375226029,0.09193,112940.0,112930.0,1.83368991]
[1756375226226,0.09193,112940.0,112930.0,1.41488321]
[1756375226421,0.09193,112940.0,112930.0,1.83368991]
[1756375226620,0.08693,112940.0,112930.0,1.83368991]
[1756375230530,0.08693,112940.0,112930.0,1.03108991]
[1756375230835,0.08693,112940.0,112930.0,1.83340991]
[1756375232731,0.08693,112940.0,112930.0,1.41460321]
[1756375232932,0.08693,112940.0,112930.0,1.83340991]
[1756375233137,1.15325494,112940.0,112930.0,1.47260991]
[1756375235237,1.15325494,112940.0,112930.0,0.67028991]